[Event "Live Chess"]
[Site "Chess.com"]
[Date "2023.05.20"]
[Round "-"]
[White "LiamClery2020"]
[Black "IgorSchukin"]
[Result "1-0"]
[WhiteElo "2064"]
[BlackElo "1740"]
[TimeControl "300"]
[EndTime "15:57:23 PDT"]
[Termination "LiamClery2020 won by resignation"]

1. e4 {[%clk 0:04:59.8]} 1... c5 {[%clk 0:04:56.7]} 2. Nf3 {[%clk 0:04:56.5]}
2... Nc6 {[%clk 0:04:56.2]} 3. Bb5 {[%clk 0:04:55.6]} 3... e6 {[%clk 0:04:54.2]}
4. Bxc6 {[%clk 0:04:52.2]} 4... bxc6 {[%clk 0:04:52.9]} 5. O-O {[%clk
0:04:52.1]} 5... d5 {[%clk 0:04:51.8]} 6. exd5 {[%clk 0:04:51]} 6... cxd5 {[%clk
0:04:50.9]} 7. Re1 {[%clk 0:04:50.5]} 7... Nf6 {[%clk 0:04:49.4]} 8. d4 {[%clk
0:04:49.4]} 8... h6 {[%clk 0:04:47.4]} 9. c4 {[%clk 0:04:47]} 9... Bb7 {[%clk
0:04:42.8]} 10. Nc3 {[%clk 0:04:44.5]} 10... Bd6 {[%clk 0:04:31.7]} 11. dxc5
{[%clk 0:04:42.5]} 11... Bxc5 {[%clk 0:04:30.5]} 12. cxd5 {[%clk 0:04:41.3]}
12... Nxd5 {[%clk 0:04:27]} 13. Qa4+ {[%clk 0:04:38.2]} 13... Qd7 {[%clk
0:04:19.6]} 14. Qxd7+ {[%clk 0:04:36.7]} 14... Kxd7 {[%clk 0:04:18.8]} 15. Ne5+
{[%clk 0:04:35.5]} 15... Ke7 {[%clk 0:04:14.3]} 16. Nxd5+ {[%clk 0:04:32.6]}
16... Bxd5 {[%clk 0:04:12]} 17. Be3 {[%clk 0:04:28.7]} 17... Bxe3 {[%clk
0:04:09.7]} 18. fxe3 {[%clk 0:04:28.6]} 18... Rhc8 {[%clk 0:04:04.9]} 19. Rac1
{[%clk 0:04:22.8]} 19... Bxa2 {[%clk 0:03:47.7]} 20. Nc6+ {[%clk 0:04:14.8]}
20... Kf6 {[%clk 0:03:44]} 21. Rf1+ {[%clk 0:04:12.5]} 21... Kg6 {[%clk
0:03:40.7]} 22. Ne7+ {[%clk 0:04:10.7]} 22... Kh7 {[%clk 0:03:35.2]} 23. Rxc8
{[%clk 0:04:10.6]} 1-0

[Event "Live Chess"]
[Site "Chess.com"]
[Date "2023.05.20"]
[Round "-"]
[White "karimghalambaz"]
[Black "grillage"]
[Result "0-1"]
[WhiteElo "1281"]
[BlackElo "1858"]
[TimeControl "300"]
[EndTime "15:57:26 PDT"]
[Termination "grillage won by resignation"]

1. d4 {[%clk 0:04:52.9]} 1... Nf6 {[%clk 0:04:58]} 2. Bf4 {[%clk 0:04:50.8]}
2... e6 {[%clk 0:04:53.9]} 3. e3 {[%clk 0:04:45.2]} 3... b6 {[%clk 0:04:52.6]}
4. Nf3 {[%clk 0:04:38.7]} 4... Bb7 {[%clk 0:04:51.1]} 5. c3 {[%clk 0:04:36.9]}
5... Be7 {[%clk 0:04:49.1]} 6. Nbd2 {[%clk 0:04:35.3]} 6... Ne4 {[%clk
0:04:44.1]} 7. Bd3 {[%clk 0:04:32.1]} 7... f5 {[%clk 0:04:42.2]} 8. O-O {[%clk
0:04:25.5]} 8... O-O {[%clk 0:04:38.8]} 9. Ne5 {[%clk 0:04:18.2]} 9... d6 {[%clk
0:04:32.6]} 10. Nef3 {[%clk 0:04:10.5]} 10... Nd7 {[%clk 0:04:29]} 11. h3 {[%clk
0:04:08.9]} 11... g5 {[%clk 0:04:21.4]} 12. Bh2 {[%clk 0:04:05.1]} 12... Qe8
{[%clk 0:04:04.3]} 13. Ne1 {[%clk 0:03:59.1]} 13... Kh8 {[%clk 0:03:57.5]} 14.
f3 {[%clk 0:03:57.5]} 14... Nef6 {[%clk 0:03:51.3]} 15. Rc1 {[%clk 0:03:48]}
15... Rg8 {[%clk 0:03:47.6]} 16. Bb1 {[%clk 0:03:45.3]} 16... Qh5 {[%clk
0:03:45]} 17. f4 {[%clk 0:03:37.7]} 17... g4 {[%clk 0:03:40.4]} 18. Nd3 {[%clk
0:03:28.1]} 18... Qh4 {[%clk 0:03:35.8]} 19. Bg3 {[%clk 0:03:25.5]} 19... Qh6
{[%clk 0:03:31.6]} 20. Kf2 {[%clk 0:03:23.4]} 20... gxh3 {[%clk 0:03:29.4]} 21.
Rh1 {[%clk 0:03:17.9]} 21... Bxg2 {[%clk 0:03:13]} 22. Rxh3 {[%clk 0:03:11.9]}
22... Qxh3 {[%clk 0:03:09.5]} 23. Nf1 {[%clk 0:02:41.3]} 23... Bxf1 {[%clk
0:03:02.4]} 24. Qxf1 {[%clk 0:02:39]} 24... Qxg3+ {[%clk 0:03:01.5]} 25. Ke2
{[%clk 0:02:36.8]} 25... Qh2+ {[%clk 0:02:53.1]} 26. Nf2 {[%clk 0:02:30.6]}
26... Rg2 {[%clk 0:02:47.8]} 27. Bd3 {[%clk 0:02:22.2]} 27... Ng4 {[%clk
0:02:43.4]} 28. Qh1 {[%clk 0:02:04.7]} 28... Rxf2+ {[%clk 0:02:40.8]} 0-1

[Event "Live Chess"]
[Site "Chess.com"]
[Date "2023.05.20"]
[Round "-"]
[White "flyingpuffins"]
[Black "JohanKjeldahl"]
[Result "0-1"]
[WhiteElo "1930"]
[BlackElo "1874"]
[TimeControl "300"]
[EndTime "15:57:30 PDT"]
[Termination "JohanKjeldahl won by resignation"]

1. e4 {[%clk 0:04:58.4]} 1... c5 {[%clk 0:04:57.8]} 2. Nf3 {[%clk 0:04:57.1]}
2... e6 {[%clk 0:04:56.8]} 3. g3 {[%clk 0:04:55]} 3... Nc6 {[%clk 0:04:55.1]} 4.
Bg2 {[%clk 0:04:54.2]} 4... a6 {[%clk 0:04:53.5]} 5. O-O {[%clk 0:04:53.6]} 5...
Nge7 {[%clk 0:04:48.6]} 6. c3 {[%clk 0:04:52.3]} 6... d5 {[%clk 0:04:47.6]} 7.
e5 {[%clk 0:04:48.1]} 7... g6 {[%clk 0:04:45.4]} 8. d4 {[%clk 0:04:46.8]} 8...
cxd4 {[%clk 0:04:42.7]} 9. cxd4 {[%clk 0:04:46.7]} 9... Bg7 {[%clk 0:04:41.5]}
10. Nc3 {[%clk 0:04:45.1]} 10... O-O {[%clk 0:04:39.4]} 11. Bg5 {[%clk
0:04:42.6]} 11... b5 {[%clk 0:04:34.5]} 12. a3 {[%clk 0:04:41.1]} 12... Bb7
{[%clk 0:04:28.7]} 13. Qd2 {[%clk 0:04:40.1]} 13... f6 {[%clk 0:04:26.8]} 14.
Bh6 {[%clk 0:04:38]} 14... fxe5 {[%clk 0:04:24.8]} 15. Bxg7 {[%clk 0:04:36.7]}
15... Kxg7 {[%clk 0:04:23.7]} 16. dxe5 {[%clk 0:04:34.7]} 16... Nf5 {[%clk
0:04:20.6]} 17. h4 {[%clk 0:04:30.3]} 17... Qc7 {[%clk 0:04:16.7]} 18. Rfe1
{[%clk 0:04:19.4]} 18... Na5 {[%clk 0:04:11.5]} 19. Ng5 {[%clk 0:04:16.8]} 19...
Rae8 {[%clk 0:04:08.3]} 20. h5 {[%clk 0:04:14.9]} 20... Nb3 {[%clk 0:04:06.2]}
21. Qd1 {[%clk 0:04:05.3]} 21... Nxa1 {[%clk 0:04:04.7]} 22. hxg6 {[%clk
0:03:59.9]} 22... hxg6 {[%clk 0:04:00.2]} 23. Qxa1 {[%clk 0:03:58.5]} 23... Qc5
{[%clk 0:03:53.8]} 24. Rf1 {[%clk 0:03:46.7]} 24... Nxg3 {[%clk 0:03:51.7]} 25.
b4 {[%clk 0:03:36.1]} 25... Qd4 {[%clk 0:03:47.1]} 26. Nf3 {[%clk 0:03:34.6]}
26... Qa7 {[%clk 0:03:32.7]} 27. Qb1 {[%clk 0:03:29.3]} 27... Nxf1 {[%clk
0:03:22.2]} 28. Nh4 {[%clk 0:03:28.2]} 28... Qxf2+ {[%clk 0:03:15.5]} 0-1

[Event "Live Chess"]
[Site "Chess.com"]
[Date "2023.05.20"]
[Round "-"]
[White "chessfiction"]
[Black "laminaaprod"]
[Result "1-0"]
[WhiteElo "2356"]
[BlackElo "2247"]
[TimeControl "300"]
[EndTime "15:57:38 PDT"]
[Termination "chessfiction won by resignation"]

1. e4 {[%clk 0:04:59.1]} 1... e5 {[%clk 0:04:57.5]} 2. Nf3 {[%clk 0:04:57.1]}
2... Nc6 {[%clk 0:04:57.1]} 3. Bc4 {[%clk 0:04:54]} 3... Nf6 {[%clk 0:04:54.7]}
4. d3 {[%clk 0:04:51.9]} 4... Be7 {[%clk 0:04:52.9]} 5. c3 {[%clk 0:04:49.2]}
5... O-O {[%clk 0:04:52.5]} 6. O-O {[%clk 0:04:48]} 6... a6 {[%clk 0:04:51.2]}
7. h3 {[%clk 0:04:47.3]} 7... b5 {[%clk 0:04:50.5]} 8. Bb3 {[%clk 0:04:46.7]}
8... d6 {[%clk 0:04:48.4]} 9. Bg5 {[%clk 0:04:46]} 9... Na5 {[%clk 0:04:46.9]}
10. Bc2 {[%clk 0:04:44.7]} 10... c5 {[%clk 0:04:46.6]} 11. Nbd2 {[%clk
0:04:44.1]} 11... Nc6 {[%clk 0:04:39.9]} 12. Re1 {[%clk 0:04:43.3]} 12... h6
{[%clk 0:04:36.2]} 13. Bh4 {[%clk 0:04:42]} 13... Nh7 {[%clk 0:04:35.8]} 14. Bg3
{[%clk 0:04:40]} 14... Rb8 {[%clk 0:04:11.2]} 15. Nf1 {[%clk 0:04:37.6]} 15...
b4 {[%clk 0:04:10.1]} 16. d4 {[%clk 0:04:36]} 16... bxc3 {[%clk 0:04:06.9]} 17.
bxc3 {[%clk 0:04:34.6]} 17... Qa5 {[%clk 0:04:03.7]} 18. Ne3 {[%clk 0:04:29.7]}
18... Qxc3 {[%clk 0:03:44.3]} 19. Nd5 {[%clk 0:04:28.1]} 19... Qa5 {[%clk
0:03:41.1]} 20. dxe5 {[%clk 0:04:25.4]} 20... dxe5 {[%clk 0:03:39.3]} 21. Nxe5
{[%clk 0:04:25.3]} 21... Nxe5 {[%clk 0:02:43.5]} 22. Nxe7+ {[%clk 0:04:21.3]}
22... Kh8 {[%clk 0:02:43.4]} 23. Bxe5 {[%clk 0:04:20.1]} 23... Rb7 {[%clk
0:02:31.8]} 24. Nf5 {[%clk 0:04:06.4]} 24... Bxf5 {[%clk 0:02:27.4]} 25. exf5
{[%clk 0:04:06.2]} 25... Rd8 {[%clk 0:02:22.7]} 26. Qg4 {[%clk 0:03:57.5]} 26...
f6 {[%clk 0:02:20.8]} 27. Bg3 {[%clk 0:03:42.8]} 27... Qd2 {[%clk 0:02:03.1]}
28. Rad1 {[%clk 0:03:38.8]} 28... Qa5 {[%clk 0:02:02]} 29. Qg6 {[%clk
0:03:32.3]} 1-0

[Event "Live Chess"]
[Site "Chess.com"]
[Date "2023.05.20"]
[Round "-"]
[White "martynstanley"]
[Black "whitedjohn"]
[Result "0-1"]
[WhiteElo "1009"]
[BlackElo "1648"]
[TimeControl "300"]
[EndTime "15:58:01 PDT"]
[Termination "whitedjohn won by checkmate"]

1. d4 {[%clk 0:04:58.6]} 1... Nf6 {[%clk 0:04:56.3]} 2. e3 {[%clk 0:04:56.6]}
2... d5 {[%clk 0:04:53.7]} 3. Bd3 {[%clk 0:04:55.7]} 3... c5 {[%clk 0:04:52.2]}
4. c3 {[%clk 0:04:54.6]} 4... Nc6 {[%clk 0:04:50.2]} 5. f4 {[%clk 0:04:53.7]}
5... cxd4 {[%clk 0:04:48.7]} 6. exd4 {[%clk 0:04:52.6]} 6... Bg4 {[%clk
0:04:46.7]} 7. Nf3 {[%clk 0:04:51.6]} 7... e6 {[%clk 0:04:45.5]} 8. O-O {[%clk
0:04:50.7]} 8... Be7 {[%clk 0:04:37.3]} 9. Qe1 {[%clk 0:04:48.5]} 9... Bxf3
{[%clk 0:04:34.2]} 10. Rxf3 {[%clk 0:04:47.2]} 10... O-O {[%clk 0:04:32.6]} 11.
Rh3 {[%clk 0:04:46]} 11... g6 {[%clk 0:04:29.4]} 12. Qh4 {[%clk 0:04:43.7]}
12... Qb6 {[%clk 0:04:08]} 13. f5 {[%clk 0:04:38.1]} 13... exf5 {[%clk
0:04:04.1]} 14. Bg5 {[%clk 0:04:36.2]} 14... Nh5 {[%clk 0:03:44.3]} 15. Bxe7
{[%clk 0:04:32.2]} 15... Nxe7 {[%clk 0:03:43.9]} 16. Nd2 {[%clk 0:04:29.5]}
16... Qxb2 {[%clk 0:03:42.6]} 17. Rd1 {[%clk 0:04:26.5]} 17... f6 {[%clk
0:03:29.1]} 18. Nf3 {[%clk 0:04:24.5]} 18... Qxc3 {[%clk 0:03:25.8]} 19. Ng5
{[%clk 0:04:21.5]} 19... fxg5 {[%clk 0:03:20.5]} 20. Qxg5 {[%clk 0:04:20.5]}
20... Qxd4+ {[%clk 0:03:19]} 21. Kf1 {[%clk 0:04:14.2]} 21... Qg7 {[%clk
0:03:08.2]} 22. Rd2 {[%clk 0:04:04.9]} 22... h6 {[%clk 0:03:06.7]} 23. Qe3
{[%clk 0:04:02.6]} 23... b6 {[%clk 0:03:00.8]} 24. Qe6+ {[%clk 0:03:59.4]} 24...
Kh8 {[%clk 0:02:55.9]} 25. Bxf5 {[%clk 0:03:56]} 25... Nxf5 {[%clk 0:02:52.5]}
26. g4 {[%clk 0:03:53.6]} 26... Nd4+ {[%clk 0:02:48.3]} 27. Kg1 {[%clk
0:03:49.8]} 27... Nxe6 {[%clk 0:02:47.7]} 28. gxh5 {[%clk 0:03:47.6]} 28...
gxh5+ {[%clk 0:02:46.3]} 29. Rg3 {[%clk 0:03:45.9]} 29... Qf6 {[%clk 0:02:43.3]}
30. Rd1 {[%clk 0:03:40.4]} 30... Qf2+ {[%clk 0:02:41.3]} 31. Kh1 {[%clk
0:03:38.9]} 31... h4 {[%clk 0:02:35.4]} 32. Rg2 {[%clk 0:03:37.2]} 32... Qf3
{[%clk 0:02:32.5]} 33. Rg1 {[%clk 0:03:34.3]} 33... Rg8 {[%clk 0:02:31.1]} 34.
h3 {[%clk 0:03:28.8]} 34... Nf4 {[%clk 0:02:28.4]} 35. a4 {[%clk 0:03:27.3]}
35... Rxg2 {[%clk 0:02:25.9]} 36. Rxg2 {[%clk 0:03:26.2]} 36... Qxg2# {[%clk
0:02:24.6]} 0-1

[Event "Live Chess"]
[Site "Chess.com"]
[Date "2023.05.20"]
[Round "-"]
[White "Pablo_dmp"]
[Black "jimwad"]
[Result "1-0"]
[WhiteElo "1877"]
[BlackElo "1221"]
[TimeControl "300"]
[EndTime "15:58:03 PDT"]
[Termination "Pablo_dmp won by resignation"]

1. e4 {[%clk 0:04:58.8]} 1... e5 {[%clk 0:04:57.5]} 2. Nc3 {[%clk 0:04:56.6]}
2... Nc6 {[%clk 0:04:54.9]} 3. Bc4 {[%clk 0:04:55.2]} 3... Bc5 {[%clk
0:04:53.1]} 4. Qg4 {[%clk 0:04:53.3]} 4... Qf6 {[%clk 0:04:40.3]} 5. Nd5 {[%clk
0:04:51.4]} 5... Qg6 {[%clk 0:04:38.3]} 6. Qxg6 {[%clk 0:04:46.9]} 6... hxg6
{[%clk 0:04:37.2]} 7. Nxc7+ {[%clk 0:04:46.3]} 7... Ke7 {[%clk 0:04:34]} 8. Nxa8
{[%clk 0:04:46.2]} 8... Nd4 {[%clk 0:04:27.8]} 9. Bd3 {[%clk 0:04:41.3]} 9...
Nf6 {[%clk 0:04:25.6]} 10. Nc7 {[%clk 0:04:39.6]} 10... d6 {[%clk 0:04:19.3]}
11. Nd5+ {[%clk 0:04:38.6]} 11... Nxd5 {[%clk 0:04:17.4]} 12. exd5 {[%clk
0:04:38.5]} 12... Bf5 {[%clk 0:04:13.6]} 13. Bxf5 {[%clk 0:04:36.3]} 13... gxf5
{[%clk 0:04:12.6]} 14. Kd1 {[%clk 0:04:34.7]} 14... Nb5 {[%clk 0:04:04.2]} 15.
a4 {[%clk 0:04:33.1]} 15... Nc7 {[%clk 0:04:02.4]} 16. c4 {[%clk 0:04:31.3]}
16... Bxf2 {[%clk 0:04:01.1]} 17. Nh3 {[%clk 0:04:25.8]} 17... Bc5 {[%clk
0:03:52.8]} 18. d3 {[%clk 0:04:21.5]} 18... Na6 {[%clk 0:03:46.8]} 19. Kc2
{[%clk 0:04:19.3]} 19... Nb4+ {[%clk 0:03:45.6]} 20. Kc3 {[%clk 0:04:16.2]}
20... a5 {[%clk 0:03:42.4]} 21. Rf1 {[%clk 0:04:04.2]} 21... f4 {[%clk
0:03:39.5]} 22. Nxf4 {[%clk 0:03:59.7]} 22... exf4 {[%clk 0:03:38]} 23. Bxf4
{[%clk 0:03:59.6]} 23... Rxh2 {[%clk 0:03:35.7]} 24. Bxh2 {[%clk 0:03:58]} 1-0

[Event "Live Chess"]
[Site "Chess.com"]
[Date "2023.05.20"]
[Round "-"]
[White "GEMdzq"]
[Black "MarkLim1"]
[Result "1/2-1/2"]
[WhiteElo "2216"]
[BlackElo "1665"]
[TimeControl "300"]
[EndTime "15:58:15 PDT"]
[Termination "Game drawn by repetition"]

1. e4 {[%clk 0:04:57.4]} 1... e6 {[%clk 0:04:58.8]} 2. d4 {[%clk 0:04:55.8]}
2... d5 {[%clk 0:04:57.9]} 3. Nc3 {[%clk 0:04:55.2]} 3... Nf6 {[%clk 0:04:56.7]}
4. Bg5 {[%clk 0:04:53.3]} 4... dxe4 {[%clk 0:04:55.7]} 5. Nxe4 {[%clk
0:04:51.8]} 5... Nbd7 {[%clk 0:04:55.2]} 6. Nf3 {[%clk 0:04:48.5]} 6... h6
{[%clk 0:04:54.1]} 7. Bxf6 {[%clk 0:04:46.6]} 7... Nxf6 {[%clk 0:04:52.5]} 8.
Nxf6+ {[%clk 0:04:44.7]} 8... Qxf6 {[%clk 0:04:51.8]} 9. Bd3 {[%clk 0:04:43.5]}
9... c5 {[%clk 0:04:49.9]} 10. c3 {[%clk 0:04:42.3]} 10... Bd7 {[%clk 0:04:47]}
11. Qe2 {[%clk 0:04:38.5]} 11... cxd4 {[%clk 0:04:45.7]} 12. Nxd4 {[%clk
0:04:36.2]} 12... Bc5 {[%clk 0:04:42.8]} 13. Bb5 {[%clk 0:04:26.9]} 13... Rd8
{[%clk 0:04:26.7]} 14. Nb3 {[%clk 0:04:23.5]} 14... Bb6 {[%clk 0:04:18]} 15. Rd1
{[%clk 0:04:12.9]} 15... Qe7 {[%clk 0:03:57.9]} 16. Bxd7+ {[%clk 0:04:02.9]}
16... Rxd7 {[%clk 0:03:55.9]} 17. O-O {[%clk 0:04:01.5]} 17... O-O {[%clk
0:03:54.2]} 18. Rxd7 {[%clk 0:04:00.5]} 18... Qxd7 {[%clk 0:03:53.1]} 19. Rd1
{[%clk 0:04:00.3]} 19... Qc7 {[%clk 0:03:49.3]} 20. g3 {[%clk 0:03:41.9]} 20...
Rd8 {[%clk 0:03:43.8]} 21. Rxd8+ {[%clk 0:03:21.3]} 21... Qxd8 {[%clk
0:03:42.7]} 22. Qe4 {[%clk 0:03:20]} 22... Qd7 {[%clk 0:03:36.2]} 23. Kg2 {[%clk
0:03:18]} 23... a5 {[%clk 0:03:26.6]} 24. a4 {[%clk 0:02:56.4]} 24... Qd1 {[%clk
0:02:58]} 25. Nd4 {[%clk 0:02:14.8]} 25... Qxa4 {[%clk 0:02:49.6]} 26. Qxb7
{[%clk 0:02:13.6]} 26... Bxd4 {[%clk 0:02:41.7]} 27. Qa8+ {[%clk 0:02:12.2]}
27... Kh7 {[%clk 0:02:39.3]} 28. Qe4+ {[%clk 0:02:11.2]} 28... g6 {[%clk
0:02:22.3]} 29. Qxd4 {[%clk 0:01:46.6]} 29... Qxd4 {[%clk 0:02:16.9]} 30. cxd4
{[%clk 0:01:46.5]} 30... Kg7 {[%clk 0:02:16.3]} 31. Kf3 {[%clk 0:01:45.8]} 31...
Kf6 {[%clk 0:02:15.5]} 32. Ke4 {[%clk 0:01:45.1]} 32... g5 {[%clk 0:02:04.7]}
33. g4 {[%clk 0:01:37]} 33... Ke7 {[%clk 0:02:02.5]} 34. d5 {[%clk 0:01:24.9]}
34... Kd6 {[%clk 0:01:39.9]} 35. dxe6 {[%clk 0:01:23.6]} 35... fxe6 {[%clk
0:01:39]} 36. Kd4 {[%clk 0:01:13.8]} 36... e5+ {[%clk 0:01:13]} 37. Kc4 {[%clk
0:01:12.2]} 37... Kc6 {[%clk 0:01:12.3]} 38. f3 {[%clk 0:01:07.6]} 38... Kb6
{[%clk 0:01:03.4]} 39. Kd5 {[%clk 0:00:40.8]} 39... Kb5 {[%clk 0:01:02.2]} 40.
Kxe5 {[%clk 0:00:40.2]} 40... Kb4 {[%clk 0:01:01.4]} 41. f4 {[%clk 0:00:39]}
41... gxf4 {[%clk 0:00:56.3]} 42. Kxf4 {[%clk 0:00:38.9]} 42... Kb3 {[%clk
0:00:55.6]} 43. h4 {[%clk 0:00:38.2]} 43... Kxb2 {[%clk 0:00:54.8]} 44. g5
{[%clk 0:00:37.9]} 44... hxg5+ {[%clk 0:00:49.4]} 45. hxg5 {[%clk 0:00:37.8]}
45... a4 {[%clk 0:00:48.8]} 46. g6 {[%clk 0:00:37.3]} 46... a3 {[%clk
0:00:48.2]} 47. g7 {[%clk 0:00:37.2]} 47... a2 {[%clk 0:00:47.7]} 48. g8=Q
{[%clk 0:00:36.6]} 48... a1=Q {[%clk 0:00:47.1]} 49. Qh8+ {[%clk 0:00:35.8]}
49... Kb1 {[%clk 0:00:44.8]} 50. Qh1+ {[%clk 0:00:33.7]} 50... Kb2 {[%clk
0:00:42]} 51. Qb7+ {[%clk 0:00:25.1]} 51... Kc2 {[%clk 0:00:39]} 52. Qe4+ {[%clk
0:00:23.9]} 52... Kb2 {[%clk 0:00:37.4]} 53. Qd4+ {[%clk 0:00:22.5]} 53... Kb1
{[%clk 0:00:36.2]} 54. Qd1+ {[%clk 0:00:20.8]} 54... Kb2 {[%clk 0:00:35.2]} 55.
Qd4+ {[%clk 0:00:19.6]} 55... Kb1 {[%clk 0:00:34.3]} 56. Qb4+ {[%clk 0:00:18.1]}
56... Kc2 {[%clk 0:00:32.8]} 57. Qe4+ {[%clk 0:00:15.9]} 57... Kb2 {[%clk
0:00:31.5]} 58. Qd4+ {[%clk 0:00:15.1]} 1/2-1/2

[Event "Live Chess"]
[Site "Chess.com"]
[Date "2023.05.20"]
[Round "-"]
[White "Delacorta"]
[Black "Doge_Dandolo"]
[Result "0-1"]
[WhiteElo "1428"]
[BlackElo "2029"]
[TimeControl "300"]
[EndTime "15:58:17 PDT"]
[Termination "Doge_Dandolo won by resignation"]

1. d4 {[%clk 0:04:57.1]} 1... d5 {[%clk 0:04:58.4]} 2. Nf3 {[%clk 0:04:56.2]}
2... Nf6 {[%clk 0:04:56.7]} 3. e3 {[%clk 0:04:55.3]} 3... Bf5 {[%clk 0:04:51.7]}
4. Be2 {[%clk 0:04:52.4]} 4... e6 {[%clk 0:04:50.8]} 5. Nh4 {[%clk 0:04:45.1]}
5... Bg6 {[%clk 0:04:47.7]} 6. Nxg6 {[%clk 0:04:43.9]} 6... hxg6 {[%clk
0:04:46.5]} 7. f3 {[%clk 0:04:37.5]} 7... Bd6 {[%clk 0:04:44.7]} 8. Nd2 {[%clk
0:04:36.5]} 8... Bg3+ {[%clk 0:04:41.5]} 9. hxg3 {[%clk 0:04:32.7]} 9... Rxh1+
{[%clk 0:04:39.6]} 10. Nf1 {[%clk 0:04:31.4]} 10... Qd6 {[%clk 0:04:36.2]} 11.
Kf2 {[%clk 0:04:27.6]} 11... Nh5 {[%clk 0:04:33.1]} 12. f4 {[%clk 0:04:25.1]}
12... Nd7 {[%clk 0:04:30.2]} 13. g4 {[%clk 0:04:21.9]} 13... Nhf6 {[%clk
0:04:28.5]} 14. Qd3 {[%clk 0:04:17.9]} 14... Ne4+ {[%clk 0:04:22.4]} 15. Kf3
{[%clk 0:04:16.1]} 15... Ndf6 {[%clk 0:04:18.5]} 16. Ng3 {[%clk 0:04:11.8]}
16... Nxg3 {[%clk 0:04:15.5]} 17. Kxg3 {[%clk 0:04:08.3]} 17... Ne4+ {[%clk
0:04:14]} 18. Kf3 {[%clk 0:04:05.8]} 18... Qe7 {[%clk 0:04:13.4]} 0-1

[Event "Live Chess"]
[Site "Chess.com"]
[Date "2023.05.20"]
[Round "-"]
[White "risinghelios"]
[Black "GMHarry-youtube"]
[Result "1/2-1/2"]
[WhiteElo "1897"]
[BlackElo "2006"]
[TimeControl "300"]
[EndTime "15:58:36 PDT"]
[Termination "Game drawn - insufficient material"]

1. e4 {[%clk 0:04:58.3]} 1... c5 {[%clk 0:04:58]} 2. c3 {[%clk 0:04:56.4]} 2...
d5 {[%clk 0:04:56.3]} 3. exd5 {[%clk 0:04:55.8]} 3... Qxd5 {[%clk 0:04:55]} 4.
Nf3 {[%clk 0:04:55.7]} 4... g6 {[%clk 0:04:53.6]} 5. Be2 {[%clk 0:04:55.6]} 5...
Bg7 {[%clk 0:04:52.9]} 6. O-O {[%clk 0:04:55.5]} 6... Nf6 {[%clk 0:04:51.9]} 7.
d4 {[%clk 0:04:55.4]} 7... Nc6 {[%clk 0:04:50.7]} 8. Be3 {[%clk 0:04:55.2]} 8...
cxd4 {[%clk 0:04:48.5]} 9. cxd4 {[%clk 0:04:55.1]} 9... O-O {[%clk 0:04:47.9]}
10. Nc3 {[%clk 0:04:55]} 10... Qd8 {[%clk 0:04:46.5]} 11. Bb5 {[%clk 0:04:53.5]}
11... Bd7 {[%clk 0:04:45.2]} 12. Bxc6 {[%clk 0:04:51.6]} 12... Bxc6 {[%clk
0:04:45.1]} 13. Ne5 {[%clk 0:04:51.2]} 13... Nd5 {[%clk 0:04:40.4]} 14. Nxc6
{[%clk 0:04:50]} 14... bxc6 {[%clk 0:04:39.4]} 15. Qf3 {[%clk 0:04:49.1]} 15...
f5 {[%clk 0:04:29.2]} 16. Rac1 {[%clk 0:04:46.7]} 16... Rc8 {[%clk 0:04:19.4]}
17. Na4 {[%clk 0:04:44.7]} 17... Nf6 {[%clk 0:03:49.7]} 18. Nc5 {[%clk 0:04:43]}
18... Qd5 {[%clk 0:03:47.8]} 19. Qxd5+ {[%clk 0:04:40.2]} 19... cxd5 {[%clk
0:03:46.5]} 20. Ne6 {[%clk 0:04:39.3]} 20... Rfe8 {[%clk 0:03:43.3]} 21. Nxg7
{[%clk 0:04:36.6]} 21... Kxg7 {[%clk 0:03:42.3]} 22. Rc5 {[%clk 0:04:36]} 22...
e6 {[%clk 0:03:38.3]} 23. Rfc1 {[%clk 0:04:35]} 23... Rxc5 {[%clk 0:03:37.1]}
24. Rxc5 {[%clk 0:04:34.4]} 24... Rb8 {[%clk 0:03:34.1]} 25. b3 {[%clk
0:04:32.9]} 25... Rb7 {[%clk 0:03:30.9]} 26. Bf4 {[%clk 0:04:31.4]} 26... Ne4
{[%clk 0:03:29.9]} 27. Be5+ {[%clk 0:04:30.1]} 27... Kf7 {[%clk 0:03:27.9]} 28.
Rc7+ {[%clk 0:04:27.8]} 28... Rxc7 {[%clk 0:03:26.8]} 29. Bxc7 {[%clk
0:04:27.7]} 29... Ke7 {[%clk 0:03:18.8]} 30. a4 {[%clk 0:04:25.9]} 30... Kd7
{[%clk 0:03:17.9]} 31. Bb8 {[%clk 0:04:22.8]} 31... a5 {[%clk 0:03:15.7]} 32.
Bf4 {[%clk 0:04:20.7]} 32... Kc6 {[%clk 0:03:11.3]} 33. Kf1 {[%clk 0:04:19.2]}
33... g5 {[%clk 0:03:00.6]} 34. Be3 {[%clk 0:04:15.9]} 34... f4 {[%clk
0:02:59.8]} 35. Bc1 {[%clk 0:04:15.1]} 35... Kd6 {[%clk 0:02:33.4]} 36. f3
{[%clk 0:04:13]} 36... Nf6 {[%clk 0:02:19.6]} 37. Bd2 {[%clk 0:04:11.7]} 37...
Nd7 {[%clk 0:02:06.9]} 38. Bxa5 {[%clk 0:04:10.3]} 38... e5 {[%clk 0:02:06.3]}
39. dxe5+ {[%clk 0:04:08.4]} 39... Kxe5 {[%clk 0:02:05.6]} 40. Bc3+ {[%clk
0:04:07.4]} 40... d4 {[%clk 0:02:02]} 41. Bb2 {[%clk 0:04:05.4]} 41... Nc5
{[%clk 0:02:01.2]} 42. a5 {[%clk 0:04:01]} 42... Nxb3 {[%clk 0:01:48.3]} 43. a6
{[%clk 0:03:59.5]} 43... Nd2+ {[%clk 0:01:45.4]} 44. Ke2 {[%clk 0:03:58.1]}
44... Nc4 {[%clk 0:01:44.6]} 45. a7 {[%clk 0:03:55.6]} 45... Nb6 {[%clk
0:01:38.2]} 46. Kd3 {[%clk 0:03:54.7]} 46... Kd5 {[%clk 0:01:37]} 47. Bxd4
{[%clk 0:03:52.3]} 47... Na8 {[%clk 0:01:36.4]} 48. Bf6 {[%clk 0:03:51.8]} 48...
h6 {[%clk 0:01:31]} 49. Bg7 {[%clk 0:03:50.8]} 49... h5 {[%clk 0:01:30.3]} 50.
Bh6 {[%clk 0:03:49.6]} 50... g4 {[%clk 0:01:29.2]} 51. Bxf4 {[%clk 0:03:49.1]}
51... Ke6 {[%clk 0:01:26.4]} 52. Ke4 {[%clk 0:03:47.7]} 52... Kf6 {[%clk
0:01:25.3]} 53. Kd5 {[%clk 0:03:45.8]} 53... Kf5 {[%clk 0:01:24.3]} 54. Kc6
{[%clk 0:03:44.8]} 54... Kxf4 {[%clk 0:01:17.9]} 55. Kb7 {[%clk 0:03:44.2]}
55... g3 {[%clk 0:00:51.3]} 56. hxg3+ {[%clk 0:03:36.3]} 56... Kxg3 {[%clk
0:00:50.3]} 57. Kxa8 {[%clk 0:03:36.2]} 57... Kxg2 {[%clk 0:00:49.6]} 58. Kb7
{[%clk 0:03:36.1]} 58... h4 {[%clk 0:00:48]} 59. a8=Q {[%clk 0:03:36]} 59...
Kxf3 {[%clk 0:00:46.3]} 60. Qh8 {[%clk 0:03:29.8]} 60... Kg3 {[%clk 0:00:43.1]}
61. Qg7+ {[%clk 0:03:29.4]} 61... Kh2 {[%clk 0:00:40.3]} 62. Kc6 {[%clk
0:03:26.4]} 62... h3 {[%clk 0:00:39.5]} 63. Kd5 {[%clk 0:03:26.1]} 63... Kh1
{[%clk 0:00:38.9]} 64. Qf6 {[%clk 0:03:22.5]} 64... h2 {[%clk 0:00:37.3]} 65.
Ke4 {[%clk 0:03:22.1]} 65... Kg2 {[%clk 0:00:36.3]} 66. Qg5+ {[%clk 0:03:21.4]}
66... Kh1 {[%clk 0:00:34.1]} 67. Qf4 {[%clk 0:03:19.4]} 67... Kg2 {[%clk
0:00:32.4]} 68. Ke3 {[%clk 0:03:08.7]} 68... h1=Q {[%clk 0:00:28.6]} 69. Qf3+
{[%clk 0:03:07.5]} 69... Kh2 {[%clk 0:00:27]} 70. Qh5+ {[%clk 0:03:04.6]} 70...
Kg1 {[%clk 0:00:26.1]} 71. Qg4+ {[%clk 0:03:02.9]} 71... Qg2 {[%clk 0:00:24.6]}
72. Qd1+ {[%clk 0:03:02.5]} 72... Kh2 {[%clk 0:00:23.2]} 73. Qh5+ {[%clk
0:03:02.2]} 73... Qh3+ {[%clk 0:00:22.1]} 74. Qxh3+ {[%clk 0:03:00.5]} 74...
Kxh3 {[%clk 0:00:22]} 1/2-1/2